[Event "Croatian Team Cup Final 2022"]
[Site "Vodice"]
[Date "2022.05.19"]
[Round "3.1"]
[White "Saric, Ante"]
[Black "Saric, Ivan"]
[Result "1/2-1/2"]
[ECO "D10"]
[WhiteElo "2510"]
[BlackElo "2693"]
[Annotator "TA"]
[PlyCount "94"]
[EventDate "2022.05.18"]
[EventType "team-tourn"]
[EventCountry "CRO"]
[SourceTitle "playchess.com"]
[Source "ChessBase"]
[SourceQuality "1"]
[TimeControl "40/5400+30:1800+30"]

{[%evp 10,94,18,20,24,20,20,27,28,25,53,36,39,39,57,22,24,27,20,21,26,24,28,28,23,23,21,0,0,0,0,0,0,0,0,0,0,0,0,0,0,0,0,0,0,0,0,-74,-66,-59,-58,-60,-72,-172,-172,-164,-174,-167,-167,-168,-169,-172,-171,-171,-167,-162,-143,-129,-64,-72,-29,-35,0,0,0,0,0,0,0,0,0,0,0,0,0,0,0]} 1. d4 {[%emt 0:00:06]} d5 {[%emt 0:01:41]} 2. c4 {[%emt 0:00:26]} c6 {[%emt 0:00:03]} 3. cxd5 {[%emt 0:02:38]} cxd5 {[%emt 0:00:04]} 4. Nf3 {[%emt 0:00:05]} Nc6 {[%emt 0:02:18]} 5. Nc3 {[%emt 0:00:08][%cal Bb1c3,Bc3e2,Be2f4][%mdl 32]} e6 {[%emt 0:01:34]} 6. Bf4 {[%emt 0:03:01]} Bd6 {[%emt 0:00:22] D10: Slav Defence: 3 cxd5 (without early Nf3) and 3 Nc3.} 7. Bxd6 {[%emt 0:05:50] 7.Bg3 is the modern continuation.} Qxd6 {[%emt 0:00:12]} 8. e3 {[%emt 0:00:02]} a6 {[%emt 0:10:14] White has an edge.} 9. Rc1 {[%emt 0:05:54]} f5 {[%emt 0:01:26] [#]} 10. Ne2 $146 {[%emt 0:03:20]} ({Predecessor:} 10. Bd3 Nf6 11. O-O O-O 12. Na4 Nb4 13. Bb1 Bd7 14. Ne5 Rac8 15. Nc5 Rc7 16. a3 {½-½ (38) Speicher,F (1868)-Felger,K (1775) Bad Woerishofen 2018}) 10... Nf6 {[%emt 0:00:33]} 11. Nf4 {[%emt 0:01:53]} O-O {[%emt 0:12:38]} 12. Nd3 {[%emt 0:02:45]} Bd7 {[%emt 0:03:31]} 13. Be2 {[%emt 0:00:58]} Rfc8 {[%emt 0:05:32]} 14. O-O {[%emt 0:02:16]} Rc7 {[%emt 0:01:06]} 15. Rc2 {[%emt 0:17:36]} Rac8 {[%emt 0:00:17]} 16. Qb1 {[%emt 0:00:45]} Be8 {[%emt 0:02:59]} 17. Rfc1 {[%emt 0:12:09]} Bh5 {[%emt 0:01:10]} 18. Nfe1 {[%emt 0:03:54]} Bxe2 {[%emt 0:04:02]} 19. Rxe2 {[%emt 0:01:44]} f4 {[%emt 0:04:45]} 20. Nf3 {[%emt 0:05:44][%cal Be1f3,Bf3d4,Bd4e6][%mdl 32]} fxe3 {[%emt 0:00:39]} 21. Rxe3 {[%emt 0:05:54]} Ng4 {[%emt 0:00:48][%cal Oc6d4]} 22. Ree1 {[%emt 0:00:11]} Nxd4 {[%emt 0:08:15]} 23. Nxd4 {[%emt 0:03:20]} Qxh2+ {[%emt 0:00:05]} 24. Kf1 {[%emt 0:00:04]} Qh1+ {[%emt 0:02:18][%mdl 64] Deflection} 25. Ke2 {[%emt 0:00:01]} Qxg2 {[%emt 0:00:14]} 26. Rxc7 {[%emt 0:07:40]} Rxc7 {[%emt 0:00:12][%cal Bc8c7,Bc7e7,Be7e6][%mdl 32]} 27. Nxe6 {[%emt 0:01:42] The board is on fire. Pair of Knights!} Re7 {[%emt 0:03:31] aiming for ...Nxf2.} 28. Kd2 {[%emt 0:05:33]} (28. Kd1 $11 {keeps the balance.} Nxf2+ 29. Nxf2 Qf3+ 30. Re2 Rxe6 31. Qd3 Qxe2+ 32. Qxe2 Rxe2 33. Kxe2) 28... Nxf2 $17 {[%emt 0:00:21]} 29. Nxf2 {[%emt 0:00:06]} Qxf2+ {[%emt 0:00:03]} 30. Re2 {[%emt 0:00:56]} Qf6 {[%emt 0:00:16]} 31. Qc2 {[%emt 0:02:18]} Rxe6 $19 {[%emt 0:03:57][%mdl 4096] Endgame KQR-KQR} 32. Qc8+ {[%emt 0:00:05]} Kf7 {[%emt 0:00:02]} 33. Qxb7+ {[%emt 0:01:13] [#]} Qe7 $1 {[%emt 0:00:28]} 34. Rf2+ {[%emt 0:01:20] [#]} Kg8 $1 {[%emt 0:01:44]} 35. Qa8+ {[%emt 0:01:30]} Qe8 {[%emt 0:00:02]} 36. Qxd5 {[%emt 0:00:05] Strongly threatening Re2.} Qc6 {[%emt 0:01:30]} 37. Qxc6 {[%emt 0:00:53]} Rxc6 {[%emt 0:00:04] KR-KR} 38. Kd3 {[%emt 0:02:10]} g5 {[%emt 0:02:59]} (38... Rd6+ $17 39. Kc4 h5) 39. b4 $1 $15 {[%emt 0:00:08]} Kg7 {[%emt 0:00:59] White must now prevent ...g4.} (39... Rb6 $5 {[%cal Rb6b4]} 40. Rg2 Rg6 $17) 40. a4 $1 {[%emt 0:00:00]} g4 {[%emt 0:00:00][%cal Bg5g4,Bg4g3][%mdl 32] ...h5 is the strong threat.} 41. b5 {[%emt 0:06:33] The position is equal.} axb5 {[%emt 0:09:03]} 42. axb5 {[%emt 0:00:01]} Rg6 {[%emt 0:00:33] Hoping for ...h5.} 43. Ke4 {[%emt 0:04:43]} g3 {[%emt 0:03:03]} 44. Rf1 {[%emt 0:02:31]} h5 {[%emt 0:02:24] Threatens to win with ...h4.} (44... g2 $5 45. Rg1 Kh6 $11) 45. Kf3 {[%emt 0:00:43]} h4 {[%emt 0:01:23] ( -> ...g2)} 46. Kg2 {[%emt 0:00:33]} Rb6 {[%emt 0:00:50]} 47. Rh1 {[%emt 0:00:20]} Rxb5 {[%emt 0:00:08] And White is the lucky defender.  Weighted Error Value: White=0.09 (flawless) /Black=0.05 (flawless)} 1/2-1/2

[Event "Croatian Team Cup Final 2022"]
[Site "Vodice"]
[Date "2022.05.19"]
[Round "3.2"]
[White "Markus, Robert"]
[Black "Plenca, Julijan"]
[Result "1-0"]
[ECO "E04"]
[WhiteElo "2613"]
[BlackElo "2443"]
[Annotator "TA"]
[PlyCount "51"]
[EventDate "2022.05.18"]
[EventType "team-tourn"]
[EventCountry "CRO"]
[SourceTitle "playchess.com"]
[Source "ChessBase"]
[SourceQuality "1"]
[TimeControl "40/5400+30:1800+30"]

{[%evp 15,51,0,39,0,11,33,28,25,28,12,5,0,155,164,404,364,378,361,746,312,407,401,388,380,457,450,680,667,633,443,584,582,626,622,582,441,667,646]} 1. d4 {[%emt 0:00:04]} d5 {[%emt 0:00:10]} 2. c4 {[%emt 0:00:09]} e6 {[%emt 0:00:05]} 3. Nf3 {[%emt 0:01:36]} Nf6 {[%emt 0:00:11]} 4. g3 {[%emt 0:00:12]} dxc4 {[%emt 0:00:26]} 5. Bg2 {[%emt 0:00:06]} a6 {[%emt 0:00:05]} 6. O-O {[%emt 0:01:55]} Nc6 {[%emt 0:00:15]} 7. Nc3 {[%emt 0:03:50]} Rb8 {[%emt 0:06:52]} 8. e4 {[%emt 0:04:33][%cal Be2e4,Be4e5][%mdl 32]} b5 {[%emt 0:05:31]} 9. Qe2 {[%emt 0:09:37] E04: Open Catalan: 5 Nf3.} (9. d5 $5 {[%cal Rd5c6]} Nb4 10. b3 $14) 9... Nxd4 {[%emt 0:16:30]} 10. Nxd4 {[%emt 0:00:09]} Qxd4 {[%emt 0:00:05]} 11. Rd1 $1 {[%emt 0:02:17] White has an edge.} Qb6 {[%emt 0:00:46]} 12. e5 {[%emt 0:00:14][%mdl 1024] White has compensation.} (12. Qd2 $2 Bb7 13. Qe2 (13. e5 $2 Bxg2 14. Kxg2 Qc6+ 15. f3 Nd7 $19) 13... Bc5 $17) 12... Nd7 {[%emt 0:00:52]} 13. Ne4 {[%emt 0:15:03] [#] And now Be3 would win.} Bc5 $146 {[%emt 0:11:21]} (13... h6 $11) ({Predecessor:} 13... Nxe5 14. Be3 c5 15. Bf4 Nd3 16. Bxb8 Qxb8 17. b3 Be7 18. bxc4 bxc4 19. Qc2 O-O 20. Qxc4 {1-0 (41) Miton,K (2443)-Jakovenko,D (2506) Yerevan 2000}) 14. Qg4 $1 $36 {[%emt 0:05:55][%mdl 2048] White has strong initiative. 0x0.001ab4e9ffc1dp-1022s more active pieces. The black rooks are badly placed.} Bf8 $2 {[%emt 0:14:38] [#]} (14... Bb7) 15. Be3 $1 $18 {[%emt 0:04:59]} Qa5 {[%emt 0:01:14]} 16. Ng5 {[%emt 0:12:20]} Be7 $2 {[%emt 0:05:24] [#]} (16... Nxe5 17. Qd4 Bd6) 17. Bc6 {[%emt 0:05:46]} (17. Nxe6 $142 $1 {[%mdl 512]} fxe6 18. Bc6) 17... Bxg5 {[%emt 0:02:13]} 18. Qxg5 {[%emt 0:01:33] Threatening mate with Bc5.} O-O {[%emt 0:00:24]} 19. Bxd7 {[%emt 0:00:06] A strong pair of Bishops.} Bb7 {[%emt 0:00:03] Against Bc6} 20. Bc5 {[%emt 0:01:17][%cal Od7e6] Inhibits Qb4. Strongly threatening Bxe6! White is clearly winning.} b4 {[%emt 0:01:10]} (20... Bf3 $142 21. Rd4 h6) 21. Bxf8 {[%emt 0:01:24]} Rxf8 {[%emt 0:00:09]} 22. a3 {[%emt 0:05:25]} b3 {[%emt 0:01:56]} 23. Rac1 {[%emt 0:01:16] Prevents c3.} Bd5 {[%emt 0:00:00]} 24. Rd4 {[%emt 0:02:18] Hoping for Rg4.} h6 {[%emt 0:00:59]} 25. Qd2 {[%emt 0:01:34]} Qb6 {[%emt 0:01:15]} (25... Qxd2 $142 26. Rxd2 Rb8) 26. Rxd5 {[%emt 0:02:41] Black got outplayed after the opening.  Weighted Error Value: White=0.45/Black=0.90} 1-0

[Event "Croatian Team Cup Final 2022"]
[Site "Vodice"]
[Date "2022.05.19"]
[Round "3.3"]
[White "Plenca, Jadranko"]
[Black "Jovanic, Ognjen"]
[Result "1/2-1/2"]
[ECO "B40"]
[WhiteElo "2443"]
[BlackElo "2509"]
[Annotator "TA"]
[PlyCount "53"]
[EventDate "2022.05.18"]
[EventType "team-tourn"]
[EventCountry "CRO"]
[SourceTitle "playchess.com"]
[Source "ChessBase"]
[SourceQuality "1"]
[TimeControl "40/5400+30:1800+30"]

{[%evp 9,53,0,0,0,0,0,7,0,36,22,31,34,42,43,45,38,59,50,74,56,43,51,125,87,90,42,37,0,22,0,12,4,12,20,15,15,66,0,0,0,0,0,0,0,0,0]} 1. e4 {[%emt 0:00:02][%cal Be2e4,Be4e5][%mdl 32]} c5 {[%emt 0:00:22]} 2. Nf3 {[%emt 0:00:41]} e6 {[%emt 0:00:03]} 3. b3 {[%emt 0:00:49]} Nc6 {[%emt 0:01:56]} 4. Bb2 {[%emt 0:02:48]} a6 {[%emt 0:00:34]} 5. Be2 {[%emt 0:10:35]} Nf6 {[%emt 0:03:36][%cal Bg8f6,Bf6d5,Bd5f4,Bf4e2][%mdl 32]} 6. e5 {[%emt 0:01:29] B40: Sicilian: 2...e6, Unusual lines.} Nd5 {[%emt 0:03:15]} 7. O-O {[%emt 0:01:03]} Nf4 {[%emt 0:10:19]} 8. Re1 {[%emt 0:05:18]} Nxe2+ {[%emt 0:00:11]} 9. Qxe2 {[%emt 0:00:33]} b6 {[%emt 0:06:52]} 10. d4 {[%emt 0:03:00] [#]} Bb7 $146 {[%emt 0:06:08]} ({Predecessor:} 10... cxd4 11. Nxd4 Bb7 12. Nd2 Qc7 13. c4 Bb4 14. N4f3 Ne7 15. a3 Bxd2 16. Nxd2 Ng6 {½-½ (58) Palit,S (2360)-Heemskerk,W (2175) Leiden 2015}) 11. dxc5 {[%emt 0:04:52]} Bxc5 {[%emt 0:02:56]} 12. Nbd2 {[%emt 0:00:11]} O-O {[%emt 0:04:53]} 13. Ne4 {[%emt 0:00:59]} Qc7 {[%emt 0:10:46]} 14. Nxc5 {[%emt 0:04:41]} (14. a3 {keeps more tension.} d5 15. exd6 Bxd6 16. Nxd6 Qxd6 17. Qe4) 14... bxc5 {[%emt 0:00:02]} 15. Rad1 {[%emt 0:01:00]} Rfd8 {[%emt 0:00:35]} (15... a5 $14) 16. Nd2 {[%emt 0:11:25] White is more active.} a5 {[%emt 0:11:08]} 17. Qc4 {[%emt 0:10:05]} ({Better is} 17. Qg4 $16) 17... Ne7 {[%emt 0:06:40][%cal Oa5a4]} 18. Qg4 {[%emt 0:02:30]} a4 $1 {[%emt 0:03:02]} 19. Nc4 {[%emt 0:03:03]} ({Don't play} 19. bxa4 Bc6 $15) 19... axb3 {[%emt 0:00:13]} 20. axb3 {[%emt 0:00:04]} Ra2 {[%emt 0:02:52]} 21. Bc1 {[%emt 0:04:36] aiming for Bg5.} Nf5 {[%emt 0:00:48]} 22. Bg5 {[%emt 0:00:42] Threatens to win with Nd6.} Rf8 {[%emt 0:04:06]} (22... Rda8 $11) 23. Ne3 {[%emt 0:05:35]} (23. Nd6 $1 $14 Nxd6 24. exd6) 23... Qxe5 $11 {[%emt 0:02:37] The position is equal.} 24. Nxf5 {[%emt 0:00:58]} Qxf5 {[%emt 0:03:41]} 25. Qxf5 {[%emt 0:00:32]} exf5 {[%emt 0:00:02]} 26. Rxd7 {[%emt 0:01:15]} Bc8 {[%emt 0:04:00]} 27. Rd2 {[%emt 0:03:27] Weighted Error Value: White=0.11 (very precise) /Black=0.12 (very precise)} 1/2-1/2

[Event "Croatian Team Cup Final 2022"]
[Site "Vodice"]
[Date "2022.05.19"]
[Round "3.4"]
[White "Srbis, Jurica"]
[Black "Saric, Luka"]
[Result "1-0"]
[ECO "B51"]
[WhiteElo "2451"]
[BlackElo "2169"]
[Annotator "TA"]
[PlyCount "83"]
[EventDate "2022.05.18"]
[EventType "team-tourn"]
[EventCountry "CRO"]
[SourceTitle "playchess.com"]
[Source "ChessBase"]
[SourceQuality "1"]
[TimeControl "40/5400+30:1800+30"]

{[%evp 13,83,30,35,25,48,39,51,42,42,-13,0,0,0,0,0,0,0,-18,0,0,0,0,0,0,0,0,0,0,0,0,7,-3,0,14,0,4,50,19,52,37,37,37,37,54,84,74,71,77,91,84,98,53,160,145,157,162,362,359,351,335,394,394,392,387,394,387,382,378,361,337,1778,1709]} 1. e4 {[%emt 0:00:05]} c5 {[%emt 0:00:06]} 2. Nf3 {[%emt 0:00:36]} Nc6 {[%emt 0:00:18]} 3. Bb5 {[%emt 0:00:31][%cal Bf1b5,Bb5a4,Ba4b3][%mdl 32]} d6 {[%emt 0:01:02]} 4. O-O {[%emt 0:01:08]} Bd7 {[%emt 0:00:25]} 5. c3 {[%emt 0:01:04]} a6 {[%emt 0:07:29]} 6. Ba4 {[%emt 0:00:21]} Nf6 {[%emt 0:03:33]} 7. Re1 {[%emt 0:00:13]} e5 {[%emt 0:01:54]} 8. h3 {[%emt 0:03:57] B51: Sicilian: Moscow Variation (3 Bb5+) without 3...Bd7.} Be7 {[%emt 0:01:08]} 9. d4 {[%emt 0:01:25]} b5 {[%emt 0:06:41]} 10. Bb3 {[%emt 0:03:37] White is slightly better.} O-O {[%emt 0:06:17]} 11. Nbd2 {[%emt 0:05:52] [#]} ({Better is} 11. d5 $14 Na5 12. Bc2) 11... cxd4 $146 {[%emt 0:16:59]} ({Predecessor:} 11... Qc7 12. Nf1 Na5 13. Bg5 Nxb3 14. axb3 exd4 15. cxd4 h6 16. Bh4 Bc6 17. d5 Bb7 {½-½ (52) Vokac,M (2471)-Navara,D (2722) Czech Republic 2012}) 12. cxd4 {[%emt 0:00:10]} exd4 {[%emt 0:00:31]} 13. Nf1 {[%emt 0:01:03]} Qb6 {[%emt 0:02:31]} 14. Ng3 {[%emt 0:01:00]} Rfe8 {[%emt 0:14:41]} 15. Bf4 {[%emt 0:04:14]} h6 {[%emt 0:05:34]} 16. Qd2 {[%emt 0:05:52][%cal Of4h6]} Bf8 {[%emt 0:01:12]} 17. Rad1 $1 {[%emt 0:15:12][%cal Rf3d4]} Be6 {[%emt 0:06:29]} 18. Nxd4 {[%emt 0:09:48]} Nxd4 {[%emt 0:00:47]} 19. Qxd4 {[%emt 0:00:03]} Qxd4 {[%emt 0:00:06]} 20. Rxd4 {[%emt 0:00:05]} Bxb3 {[%emt 0:00:11]} 21. axb3 {[%emt 0:00:03]} Re6 {[%emt 0:13:00]} 22. Re2 {[%emt 0:17:48]} Rc8 {[%emt 0:03:46]} 23. Kf1 {[%emt 0:00:44]} g6 {[%emt 0:00:46]} 24. f3 {[%emt 0:01:37]} Ne8 {[%emt 0:03:12]} (24... Nd7 $11 {might be stronger.}) 25. Rdd2 {[%emt 0:01:04]} Rc6 {[%emt 0:01:02]} 26. Rc2 {[%emt 0:00:29]} Rc5 {[%emt 0:01:30]} 27. b4 $36 {[%emt 0:02:45][%mdl 2048] White is more active.} Rxc2 {[%emt 0:00:34]} 28. Rxc2 {[%emt 0:00:01]} Bg7 {[%emt 0:00:27]} 29. b3 {[%emt 0:01:38]} Be5 {[%emt 0:00:46]} 30. Ne2 {[%emt 0:00:04]} g5 {[%emt 0:00:36]} 31. Be3 {[%emt 0:02:42]} Nf6 {[%emt 0:00:21]} 32. Nd4 {[%emt 0:03:48]} ({Much worse is} 32. Rc6 $6 d5 33. exd5 Nxd5 34. Rc8+ Kg7 $11) 32... Re8 {[%emt 0:00:01] [#]} ({Black should try} 32... Bxd4 $14 33. Bxd4 d5) 33. Nf5 $1 $16 {[%emt 0:00:55]} d5 {[%emt 0:00:34]} 34. Nxh6+ {[%emt 0:00:45]} Kh7 $2 {[%emt 0:00:01]} (34... Kg7) 35. Nxf7 $18 {[%emt 0:00:55]} dxe4 {[%emt 0:00:40]} 36. Nxg5+ {[%emt 0:01:48]} Kg6 {[%emt 0:00:05]} 37. Nxe4 {[%emt 0:02:29]} Nxe4 {[%emt 0:00:37]} 38. fxe4 {[%emt 0:00:02]} Bf6 {[%emt 0:00:07]} 39. Rc6 {[%emt 0:01:05]} Rxe4 {[%emt 0:00:10]} 40. Bd2 {[%emt 0:00:00] Bc3 is the strong threat.} Kf7 {[%emt 0:00:00]} 41. Rxa6 {[%emt 0:00:32]} Rd4 $2 {[%emt 0:01:27] [#]} (41... Be7 42. Rb6 Bxb4) 42. Rxf6+ $1 {[%emt 0:00:08] Weighted Error Value: White=0.08 (flawless) /Black=0.19 (very precise)} 1-0

[Event "Croatian Team Cup Final 2022"]
[Site "Vodice"]
[Date "2022.05.19"]
[Round "3.5"]
[White "Kozul, Zdenko"]
[Black "Lalic, Bogdan"]
[Result "1/2-1/2"]
[ECO "D85"]
[WhiteElo "2621"]
[BlackElo "2411"]
[Annotator "TA"]
[PlyCount "36"]
[EventDate "2022.05.18"]
[EventType "team-tourn"]
[EventCountry "CRO"]
[SourceTitle "playchess.com"]
[Source "ChessBase"]
[SourceQuality "1"]
[TimeControl "40/5400+30:1800+30"]

{[%evp 17,36,0,0,15,0,7,0,0,12,0,0,-3,0,0,0,-16,-31,-112,-65,-47,-14]} 1. d4 {[%emt 0:00:57]} Nf6 {[%emt 0:07:04]} 2. c4 {[%emt 0:00:12]} g6 {[%emt 0:00:22]} 3. Nc3 {[%emt 0:01:45]} d5 {[%emt 0:00:08]} 4. cxd5 {[%emt 0:00:15]} Nxd5 {[%emt 0:00:08]} 5. e4 {[%emt 0:00:05]} Nxc3 {[%emt 0:00:05]} 6. bxc3 {[%emt 0:00:04]} Bg7 {[%emt 0:00:09]} 7. Nf3 {[%emt 0:02:31]} c5 {[%emt 0:00:10]} 8. h3 {[%emt 0:00:37]} O-O {[%emt 0:01:21]} 9. Be2 {[%emt 0:01:28]} b6 {[%emt 0:01:17]} 10. Be3 {[%emt 0:02:40] D85: Exchange Grünfeld: Unusual White 7th moves and lines with 7 Nf3.} Bb7 {[%emt 0:01:23]} 11. Qd3 {[%emt 0:00:18]} cxd4 {[%emt 0:06:34]} 12. cxd4 {[%emt 0:00:10] The position is equal.} e6 {[%emt 0:00:28]} 13. O-O {[%emt 0:10:11]} Nc6 {[%emt 0:19:53]} 14. Rad1 {[%emt 0:18:25]} Rc8 {[%emt 0:00:00]} 15. Bg5 {[%emt 0:19:00]} Qd6 {[%emt 0:00:00] [#]} 16. Qe3 $146 {[%emt 0:01:35]} ({Predecessor:} 16. a3 Na5 17. Rc1 h6 18. Bd2 Rfd8 19. Bb4 Qf4 20. Rxc8 Rxc8 21. Bxa5 bxa5 22. d5 exd5 {½-½ (98) Baldauf,M (2478)-Michalik,P (2546) Austria 2018}) 16... Nb4 {[%emt 0:15:14]} 17. d5 {[%emt 0:02:07]} ({Better is} 17. Rd2 $15) 17... exd5 {[%emt 0:00:00]} (17... Nxa2 $17 {aiming for ...Nc3.} 18. Bf4 e5) 18. e5 $15 Qc5 {[%emt 0:05:23] Weighted Error Value: White=0.21 (precise) /Black=0.07 (flawless)} 1/2-1/2

[Event "Croatian Team Cup Final 2022"]
[Site "Vodice"]
[Date "2022.05.19"]
[Round "3.6"]
[White "Zaja, Ivan"]
[Black "Stevic, Hrvoje"]
[Result "1/2-1/2"]
[ECO "D27"]
[WhiteElo "2449"]
[BlackElo "2558"]
[Annotator "TA"]
[PlyCount "44"]
[EventDate "2022.05.18"]
[EventType "team-tourn"]
[EventCountry "CRO"]
[SourceTitle "playchess.com"]
[Source "ChessBase"]
[SourceQuality "1"]
[TimeControl "40/5400+30:1800+30"]

{[%evp 25,31,18,15,15,17,1,21,3]} 1. d4 {[%emt 0:04:43]} d5 {[%emt 0:00:17]} 2. c4 {[%emt 0:00:19]} dxc4 {[%emt 0:00:10]} 3. Nf3 {[%emt 0:00:23]} Nf6 {[%emt 0:00:23]} 4. e3 {[%emt 0:00:36]} e6 {[%emt 0:01:55]} 5. Bxc4 {[%emt 0:00:27]} a6 {[%emt 0:00:21]} 6. O-O {[%emt 0:01:28]} c5 {[%emt 0:03:32]} 7. dxc5 {[%emt 0:01:40]} Qxd1 {[%emt 0:02:30]} 8. Rxd1 {[%emt 0:00:06]} Bxc5 {[%emt 0:00:08]} 9. a3 {[%emt 0:00:41]} Nbd7 {[%emt 0:03:05]} 10. b4 {[%emt 0:01:21]} Be7 {[%emt 0:00:45]} 11. Bb2 {[%emt 0:00:21]} b5 {[%emt 0:01:59]} 12. Be2 {[%emt 0:02:38]} Bb7 {[%emt 0:01:31]} 13. Nbd2 {[%emt 0:01:03]} O-O {[%emt 0:02:06] The position is equal.} 14. Rac1 {[%emt 0:01:03] D27: Queen's Gambit Accepted: Classical main line: 7 e4!? and 7 a4.} Rac8 {[%emt 0:01:48]} (14... Rfc8 15. Rxc8+ Rxc8 16. Rc1 Rxc1+ 17. Bxc1 {½-½ (17) Zaja,I (2481)-Stevic,H (2597) Porec 2016}) 15. Nd4 {[%emt 0:02:05]} Nd5 {[%emt 0:01:34]} 16. N2b3 {[%emt 0:05:31] [#] Not much happened in this game.} {Predecessor:} N7b6 $146 17. Na5 Na4 18. Ba1 Rxc1 19. Rxc1 Rc8 20. Rxc8+ Bxc8 21. Ndc6 Bd6 22. g3 Kf8 {½-½ (31) Penafiel,H (2193)-Mussanti,D (2324) Buenos Aires 2019} 1/2-1/2

[Event "Croatian Team Cup Final 2022"]
[Site "Vodice"]
[Date "2022.05.20"]
[Round "3.7"]
[White "Palac, Mladen"]
[Black "Kovacevic, Blazimir"]
[Result "1/2-1/2"]
[ECO "B04"]
[WhiteElo "2505"]
[BlackElo "2401"]
[Annotator "TA"]
[PlyCount "53"]
[EventDate "2022.05.18"]
[EventType "team-tourn"]
[EventCountry "CRO"]
[SourceTitle "playchess.com"]
[Source "ChessBase"]
[SourceQuality "1"]
[TimeControl "40/5400+30:1800+30"]

{[%evp 17,53,39,38,38,49,45,41,21,30,11,11,12,12,2,25,38,29,22,34,17,27,18,14,20,21,11,16,6,14,8,17,9,4,11,26,0,11,0]} 1. e4 {[%emt 0:05:53]} Nf6 {[%emt 0:00:11]} 2. e5 {[%emt 0:00:16]} Nd5 {[%emt 0:00:05]} 3. d4 {[%emt 0:00:15]} d6 {[%emt 0:00:06]} 4. Nf3 {[%emt 0:00:05]} dxe5 {[%emt 0:00:19]} 5. Nxe5 {[%emt 0:00:09]} g6 {[%emt 0:00:05]} 6. Bc4 {[%emt 0:03:31]} c6 {[%emt 0:00:25]} 7. O-O {[%emt 0:04:17]} Bg7 {[%emt 0:00:08]} 8. Re1 {[%emt 0:01:28]} O-O {[%emt 0:00:10]} 9. c3 {[%emt 0:00:57]} Be6 {[%emt 0:04:46]} 10. Bb3 {[%emt 0:04:08] B04: Alekhine's Defence: 4 Nf3.} Nd7 {[%emt 0:01:33]} 11. Nf3 {[%emt 0:09:45]} Bg4 {[%emt 0:07:44][%cal Oe7e5]} 12. Nbd2 {[%emt 0:06:45][%cal Bb1d2,Bd2f3,Bf3d4][%mdl 32] White is slightly better.} e5 $1 {[%emt 0:05:00] [#]} 13. h3 $146 {[%emt 0:06:22]} ({Predecessor:} 13. dxe5 Nxe5 14. h3 Bxf3 15. Nxf3 Re8 16. Nxe5 Bxe5 17. Qf3 Bh2+ 18. Kf1 Rxe1+ 19. Kxe1 {1-0 (62) Roebuck,D (2343)-Suarez Rodriguez,J (2244) ICCF email 2017}) 13... Bxf3 {[%emt 0:01:16]} 14. Nxf3 {[%emt 0:00:03][%cal Rd4e5]} exd4 {[%emt 0:01:40]} 15. Bxd5 {[%emt 0:03:04] [#] Strongly threatening Bb3.} cxd5 {[%emt 0:11:04]} (15... dxc3 {is more complex.} 16. Bg5 cxb2 17. Rb1 Nf6) 16. Nxd4 {[%emt 0:01:08]} Ne5 {[%emt 0:04:06]} 17. Bf4 {[%emt 0:03:44]} Nc6 {[%emt 0:23:36]} 18. Be3 {[%emt 0:00:47]} Re8 {[%emt 0:01:09]} 19. Qd2 {[%emt 0:03:56]} Ne5 {[%emt 0:04:44]} 20. b3 {[%emt 0:02:02] Against Nc4} Qa5 {[%emt 0:02:24]} 21. Red1 {[%emt 0:14:22]} Nc6 {[%emt 0:03:30]} 22. Ne2 {[%emt 0:03:22]} Rad8 {[%emt 0:00:30]} 23. Rac1 {[%emt 0:00:23]} Rd7 {[%emt 0:13:26]} 24. Qb2 {[%emt 0:06:04]} Ne7 {[%emt 0:08:02]} 25. Nd4 {[%emt 0:06:01]} Nc6 {[%emt 0:00:08]} 26. Ne2 {[%emt 0:02:31]} Ne7 {[%emt 0:00:05]} 27. Nd4 {[%emt 0:01:10] Weighted Error Value: White=0.08 (flawless) /Black=0.02 (flawless)} 1/2-1/2